fUSD/lending_fUSD_20260512
["ID","MTS","AMOUNT","RATE_DAILY","PERIOD"]
[422120452,1778581859000,-1000.0,0.000419,2]
[422120449,1778581859000,-500.0,0.00041836,2]
[422120454,1778581859000,-1000.0,0.000419,2]
[422120459,1778581859000,-1000.0,0.000419,2]
[422120458,1778581859000,-1000.0,0.000419,2]
[422120457,1778581859000,-1000.0,0.000419,2]
[422120460,1778581859000,-1000.0,0.000419,2]
[422120399,1778581859000,-640.08,0.00041387,30]
[422120447,1778581859000,-1000.0,0.000418,30]
[422120425,1778581859000,-154.0,0.00041523,120]
[422120438,1778581859000,-2668.0,0.00041594,7]
[422120427,1778581859000,-312.0,0.00041523,120]
[422120402,1778581859000,-569.68,0.00041387,30]
[422120395,1778581859000,-393.72,0.00041387,30]
[422120430,1778581859000,-155.64400568,0.00041529,120]
[422120400,1778581859000,-571.93,0.00041387,30]
[422120405,1778581859000,-640.08,0.00041387,30]
[422120415,1778581859000,-500.0,0.00041387,120]
[422120404,1778581859000,-391.58,0.00041387,30]
[422120409,1778581859000,-571.93,0.00041387,30]
[422120406,1778581859000,-638.97,0.00041387,30]
[422120417,1778581859000,-571.93,0.00041387,30]
[422120410,1778581859000,-569.68,0.00041387,30]
[422120407,1778581859000,-569.68,0.00041387,30]
[422120408,1778581859000,-571.93,0.00041387,30]
[422120411,1778581859000,-571.93,0.00041387,30]
[422120398,1778581859000,-393.72,0.00041387,30]
[422120413,1778581859000,-155.11,0.00041387,30]
[422120416,1778581859000,-569.68,0.00041387,30]
[422120429,1778581859000,-512.0,0.00041523,120]
[422120426,1778581859000,-155.0,0.00041523,120]
[422120419,1778581859000,-1086.41,0.00041463,2]
[422120423,1778581859000,-150.0,0.00041523,6]
[422120422,1778581859000,-239.415217,0.00041522,62]
[422120428,1778581859000,-495.13694843,0.00041523,120]
[422120421,1778581859000,-200.0,0.000415,15]
[422120420,1778581859000,-1168.76,0.000415,2]
[422120418,1778581859000,-569.68,0.00041387,30]
[422120412,1778581859000,-569.68,0.00041387,30]
[422120424,1778581859000,-163.0,0.00041523,120]
[422120414,1778581859000,-571.93,0.00041387,30]
[422120481,1778581860000,-250.0,0.00041973,120]
[422120476,1778581860000,-58562.34360392,0.000419,120]
[422120470,1778581860000,-5000.0,0.000419,120]
[422120478,1778581860000,-350.0,0.00041902,8]
[422120479,1778581860000,-1815.17,0.00041933,120]
[422120480,1778581860000,-297.78,0.00041973,120]
[422120482,1778581860000,-151.0,0.00041997,14]
[422120484,1778581860000,-500.0,0.00041999,120]
[422120474,1778581860000,-1500.0,0.000419,7]
[422120483,1778581860000,-1000.0,0.00041999,120]
[422120477,1778581860000,-657.7811158,0.000419,2]
[422120472,1778581860000,-1000.0,0.000419,2]
[422120462,1778581860000,-1000.0,0.000419,2]
[422120473,1778581860000,-1000.0,0.000419,2]
[422120469,1778581860000,-200.03,0.000419,17]
[422120471,1778581860000,-171.25738021,0.000419,5]
[422120466,1778581860000,-1000.0,0.000419,2]
[422120465,1778581860000,-1000.0,0.000419,2]
[422120463,1778581860000,-1000.0,0.000419,2]
[422120464,1778581860000,-1000.0,0.000419,2]
[422120467,1778581860000,-801.19908054,0.000419,2]
[422120461,1778581860000,-1000.0,0.000419,2]
[422120468,1778581860000,-150.0,0.000419,48]
[422120485,1778581860000,-500.0,0.00041999,120]
[422120475,1778581860000,-1995.18204968,0.000419,2]
[422120487,1778581860000,-2878.0,0.00042,7]
[422120489,1778581860000,-811492.04442414,0.00042,120]
[422120488,1778581860000,-7227.06397715,0.00042,42]
[422120486,1778581860000,-567.06631625,0.00041999,120]
[422120513,1778581860000,-659.03,0.00038356,2]
[422120512,1778581860000,-659.03,0.00038356,2]
[422120510,1778581860000,-659.03,0.00038356,2]
[422120511,1778581860000,-659.03,0.00038356,2]
[422120509,1778581860000,-659.03,0.00038356,2]
[422120508,1778581860000,-659.03,0.00038356,2]
[422120505,1778581860000,-444.69861481,0.00037262,2]
[422120504,1778581860000,-12434.23688996,0.0003443,2]
[422120503,1778581860000,-2383.37,0.00027397,10]
[422120506,1778581860000,-659.03,0.00038356,2]
[422120500,1778581860000,-220.68,0.00026546,2]
[422120507,1778581860000,-659.03,0.00038356,2]
[422120502,1778581860000,-220.77,0.00026575,7]
[422120514,1778581860000,-304900.39688705,0.00042,120]
[422120490,1778581860000,-399033.08216584,0.00042,120]
[422120501,1778581860000,-160.17,0.00026575,2]
[422120492,1778581860000,-1964.50631494,0.00042,120]
[422120493,1778581860000,-160.14,0.00024658,2]
[422120495,1778581860000,-331.02,0.00024802,7]
[422120491,1778581860000,-9383.60020525,0.00042,120]
[422120496,1778581860000,-331.02,0.00024946,2]
[422120494,1778581860000,-331.02,0.00024658,2]
[422120499,1778581860000,-220.68,0.00026517,7]
[422120498,1778581860000,-160.14,0.00025753,30]
[422120497,1778581860000,-160.14,0.00025205,7]
[422120522,1778581861000,-659.03,0.00038356,2]
[422120516,1778581861000,-8.94965201,0.00037262,2]
[422120518,1778581861000,-483.88780455,0.00037262,2]
[422120517,1778581861000,-291.05034799,0.00037262,2]
[422120520,1778581861000,-659.03,0.00038356,2]
[422120523,1778581861000,-659.03,0.00038356,2]
[422120519,1778581861000,-309.70196001,0.00037262,2]
[422120521,1778581861000,-659.03,0.00038356,2]
[422120515,1778581861000,-331.02,0.0002509,2]
[422120524,1778581861000,-659.03,0.00038356,2]
[422120527,1778581861000,-659.03,0.00038356,2]
[422120525,1778581861000,-659.03,0.00038356,2]
[422120529,1778581861000,-309.0,0.000403,30]
[422120528,1778581861000,-659.21800701,0.00038356,2]
[422120526,1778581861000,-659.03,0.00038356,2]
[422120531,1778581861000,-1179.954,0.00028704,2]
[422120533,1778581861000,-39496.41968771,0.00042,120]
[422120532,1778581861000,-300.0,0.00037262,2]
[422120530,1778581861000,-2013.48810341,0.00042,120]
[422120534,1778581879000,-5000.01,0.000199,2]
[422120536,1778581963000,-5000.01,0.000199,2]
[422120540,1778581964000,-10000.01,0.000199,2]
[422120539,1778581964000,-10000.01,0.000199,2]
[422120538,1778581964000,-5000.01,0.000199,2]
[422120537,1778581964000,-5000.01,0.000199,2]
[422120541,1778581965000,-10000.01,0.000199,2]
[422120542,1778581965000,-10000.01,0.000199,2]
[422120543,1778581966000,-10000.01,0.000199,2]
[422120544,1778582001000,-152.0,0.00019379,30]
[422120545,1778582402000,236.0,0.0001051,2]
[422120568,1778583032000,-2500.0,0.00019408,2]
[422120567,1778583032000,-152.0,0.00019379,30]
[422120572,1778583032000,-300.0,0.00019699,2]
[422120571,1778583032000,-210.53,0.00019689,2]
[422120565,1778583032000,-500.0,0.0001928,2]
[422120576,1778583032000,-657.78111581,0.000197,2]
[422120573,1778583032000,-1200.0,0.00019699,2]
[422120586,1778583032000,-458.56789257,0.00019798,2]
[422120575,1778583032000,-4857.52129129,0.000197,2]
[422120577,1778583032000,-500.0,0.0001972,2]
[422120584,1778583032000,-500.0,0.00019798,2]
[422120574,1778583032000,-12094.67166058,0.000197,2]
[422120570,1778583032000,-166.66,0.00019645,2]
[422120557,1778583032000,-334.02485,0.00018322,2]
[422120566,1778583032000,-200.0,0.00019289,2]
[422120564,1778583032000,-166.66,0.0001924,2]
[422120563,1778583032000,-150.0,0.00019197,2]
[422120562,1778583032000,-200.0,0.00019025,2]
[422120561,1778583032000,-163.15232632,0.00019,2]
[422120555,1778583032000,-995.65634641,0.00018322,2]
[422120559,1778583032000,-2500.0,0.00018872,2]
[422120560,1778583032000,-981.62785809,0.00018872,2]
[422120556,1778583032000,-310.55827694,0.00018322,2]
[422120558,1778583032000,-859.76052665,0.00018322,2]
[422120554,1778583032000,-162.8,0.00017644,2]
[422120585,1778583032000,-500.0,0.00019798,2]
[422120569,1778583032000,-179.2,0.00019622,2]
[422120579,1778583032000,-500.0,0.00019798,2]
[422120602,1778583032000,-10392.33513008,0.00019799,2]
[422120578,1778583032000,-447.69750985,0.00019798,2]
[422120580,1778583032000,-500.0,0.00019798,2]
[422120617,1778583032000,-91963.41961386,0.00019799,2]
[422120613,1778583032000,-494.97495455,0.00019799,2]
[422120615,1778583032000,-13557.49941112,0.00019799,2]
[422120616,1778583032000,-452.34929037,0.00019799,2]
[422120607,1778583032000,-102373.64947597,0.00019799,2]
[422120614,1778583032000,-3184.54864576,0.00019799,2]
[422120605,1778583032000,-24095.63996344,0.00019799,2]
[422120610,1778583032000,-8619.67861961,0.00019799,2]
[422120596,1778583032000,-500.0,0.00019798,2]
[422120594,1778583032000,-500.0,0.00019798,2]
[422120599,1778583032000,-500.0,0.00019798,2]
[422120598,1778583032000,-500.0,0.00019798,2]
[422120618,1778583032000,-993.21706718,0.00019799,2]
[422120597,1778583032000,-500.0,0.00019798,2]
[422120589,1778583032000,-500.0,0.00019798,2]
[422120582,1778583032000,-500.0,0.00019798,2]
[422120583,1778583032000,-244.17548185,0.00019798,2]
[422120587,1778583032000,-500.0,0.00019798,2]
[422120588,1778583032000,-500.0,0.00019798,2]
[422120581,1778583032000,-500.0,0.00019798,2]
[422120590,1778583032000,-500.0,0.00019798,2]
[422120600,1778583032000,-1460796.74723971,0.00019799,2]
[422120595,1778583032000,-397.64315322,0.00019798,2]
[422120592,1778583032000,-500.0,0.00019798,2]
[422120593,1778583032000,-500.0,0.00019798,2]
[422120591,1778583032000,-500.0,0.00019798,2]
[422120633,1778583038000,-505.50097699,0.00019899,2]
[422120636,1778583038000,-500.0,0.000199,7]
[422120634,1778583038000,-1412.537,0.00019899,2]
[422120635,1778583038000,-157.059,0.00019899,2]
[422120639,1778583038000,-292.0,0.0002,2]
[422120641,1778583038000,-383.0,0.0002,2]
[422120640,1778583038000,-733.0,0.0002,2]
[422120638,1778583038000,-153.0,0.0002,2]
[422120642,1778583038000,-164.0,0.0002,2]
[422120637,1778583038000,-1000.0,0.00019999,10]
[422120632,1778583038000,-150.0,0.00019898,2]
[422120626,1778583038000,-830.9457051,0.000198,2]
[422120627,1778583038000,-200.0,0.000198,7]
[422120628,1778583038000,-1995.18204968,0.000198,2]
[422120630,1778583038000,-568.65,0.000198,2]
[422120624,1778583038000,-774352.74514058,0.00019799,2]
[422120625,1778583038000,-4166.5479,0.000198,2]
[422120623,1778583038000,-5891.26576495,0.00019799,2]
[422120622,1778583038000,-1456.55440447,0.00019799,2]
[422120620,1778583038000,-672.40007618,0.00019799,2]
[422120621,1778583038000,-702.97520217,0.00019799,2]
[422120655,1778583038000,-166.66,0.0002005,2]
[422120631,1778583038000,-5406.4957,0.000198,2]
[422120649,1778583038000,-1185.0,0.0002,2]
[422120629,1778583038000,-1500000.0,0.000198,2]
[422120659,1778583038000,-150.41,0.0002035,2]
[422120657,1778583038000,-250.07,0.00020089,2]
[422120683,1778583038000,-163.03,0.00021474,2]
[422120685,1778583038000,-288.03012105,0.00021501,21]
[422120687,1778583038000,-316.61964481,0.00021501,21]
[422120686,1778583038000,-306.60361588,0.00021501,21]
[422120684,1778583038000,-202.04249997,0.00021501,21]
[422120680,1778583038000,-2000.0,0.00021049,2]
[422120681,1778583038000,-166.66,0.00021265,2]
[422120678,1778583038000,-10000.0,0.00021,2]
[422120665,1778583038000,-166.66,0.0002086,2]
[422120677,1778583038000,-179.0,0.00021,2]
[422120679,1778583038000,-6000.0,0.00021,2]
[422120682,1778583038000,-420.0,0.00021457,2]
[422120673,1778583038000,-383.0,0.00021,2]
[422120675,1778583038000,-191.0,0.00021,2]
[422120672,1778583038000,-733.0,0.00021,2]
[422120670,1778583038000,-292.0,0.00021,2]
[422120661,1778583038000,-166.66,0.00020455,2]
[422120674,1778583038000,-164.0,0.00021,2]
[422120667,1778583038000,-161.0,0.00021,2]
[422120663,1778583038000,-210.53,0.00020783,2]
[422120653,1778583038000,-158.0,0.0002,2]
[422120647,1778583038000,-191.0,0.0002,2]
[422120651,1778583038000,-838.0,0.0002,2]
[422120676,1778583038000,-158.0,0.00021,2]
[422120726,1778583039000,-568.65,0.000227,7]
[422120727,1778583039000,-12094.67166057,0.00022871,2]
[422120724,1778583039000,-292.15608919,0.000225,2]
[422120721,1778583039000,-1000.0,0.00022421,2]
[422120718,1778583039000,-292.15608919,0.000223,2]
[422120716,1778583039000,-214.86625456,0.00022051,2]
[422120717,1778583039000,-292.15608919,0.000221,2]
[422120719,1778583039000,-1000.0,0.00022421,2]
[422120722,1778583039000,-1000.0,0.00022421,2]
[422120728,1778583039000,-292.15608919,0.000229,2]
[422120720,1778583039000,-1000.0,0.00022421,2]
[422120725,1778583039000,-292.15608919,0.000227,2]
[422120744,1778583039000,-502.22153914,0.00023456,2]
[422120735,1778583039000,-210.53,0.00022971,2]
[422120729,1778583039000,-500.0,0.00022908,2]
[422120730,1778583039000,-500.0,0.00022908,2]
[422120736,1778583039000,-292.0,0.00023,2]
[422120732,1778583039000,-1434.83651377,0.00022968,2]
[422120734,1778583039000,-1500.0,0.00022968,2]
[422120733,1778583039000,-1500.0,0.00022968,2]
[422120748,1778583039000,-2000.0,0.00023516,2]
[422120738,1778583039000,-383.0,0.00023,2]
[422120739,1778583039000,-164.0,0.00023,2]
[422120715,1778583039000,-160.0,0.00022051,2]
[422120741,1778583039000,-980.0,0.00023,2]
[422120731,1778583039000,-1500.0,0.00022968,2]
[422120714,1778583039000,-208.2157166,0.00022051,2]
[422120697,1778583039000,-500.0,0.00021873,2]
[422120723,1778583039000,-1002.10346774,0.00022421,2]
[422120740,1778583039000,-191.0,0.00023,2]
[422120691,1778583039000,-5975.66,0.00021757,2]
[422120689,1778583039000,-999.99,0.00021757,2]
[422120690,1778583039000,-1684.86,0.00021757,2]
[422120688,1778583039000,-150.99,0.00021757,2]
[422120692,1778583039000,-9999.99,0.00021757,2]
[422120693,1778583039000,-2302.76,0.00021757,2]
[422120701,1778583039000,-210.53,0.00021877,2]
[422120702,1778583039000,-800.0,0.000219,7]
[422120703,1778583039000,-5000.0,0.00021918,2]
[422120694,1778583039000,-4857.52129124,0.00021868,2]
[422120696,1778583039000,-500.0,0.00021873,2]
[422120698,1778583039000,-500.0,0.00021873,2]
[422120699,1778583039000,-500.0,0.00021873,2]
[422120700,1778583039000,-225462.28647511,0.00021875,2]
[422120695,1778583039000,-500.0,0.00021873,2]
[422120705,1778583039000,-500.0,0.00021943,2]
[422120704,1778583039000,-500.0,0.00021943,2]
[422120707,1778583039000,-292.0,0.00022,2]
[422120706,1778583039000,-500.0,0.00021943,2]
[422120708,1778583039000,-733.0,0.00022,2]
[422120709,1778583039000,-383.0,0.00022,2]
[422120710,1778583039000,-164.0,0.00022,2]
[422120711,1778583039000,-191.0,0.00022,2]
[422120713,1778583039000,-158.0,0.00022,2]
[422120712,1778583039000,-2571.77,0.00022,30]
[422120737,1778583039000,-733.0,0.00023,2]
[422120792,1778583039000,-733.29275461,0.00025,2]
[422120743,1778583039000,-587.0,0.00023371,2]
[422120771,1778583039000,-567.06631625,0.00024557,2]
[422120773,1778583039000,-500.0,0.00024575,2]
[422120778,1778583039000,-503.13665019,0.00024575,2]
[422120785,1778583039000,-168.97,0.00024658,2]
[422120786,1778583039000,-165.13,0.00024658,2]
[422120787,1778583039000,-152.0,0.00024871,2]
[422120788,1778583039000,-152.0,0.00024871,2]
[422120782,1778583039000,-1000.0,0.00024658,2]
[422120779,1778583039000,-500.0,0.00024575,2]
[422120784,1778583039000,-168.96,0.00024658,2]
[422120777,1778583039000,-500.0,0.00024575,2]
[422120780,1778583039000,-150.0,0.00024575,2]
[422120781,1778583039000,-181.80940575,0.00024658,2]
[422120783,1778583039000,-235.61,0.00024658,2]
[422120790,1778583039000,-4880.53394912,0.00024981,2]
[422120789,1778583039000,-1112.0149,0.0002489,2]
[422120796,1778583039000,-174.0,0.00025,2]
[422120797,1778583039000,-163.03,0.00025018,2]
[422120799,1778583039000,-500.62034088,0.00025123,2]
[422120791,1778583039000,-309.47700498,0.00025,2]
[422120794,1778583039000,-182.20899857,0.00025,2]
[422120795,1778583039000,-210.0,0.00025,2]
[422120798,1778583039000,-168.97,0.00025114,7]
[422120801,1778583039000,-1002.82280248,0.00025123,2]
[422120800,1778583039000,-1002.81656329,0.00025123,2]
[422120772,1778583039000,-505.18613746,0.00024557,2]
[422120769,1778583039000,-459.35398862,0.00024557,2]
[422120793,1778583039000,-394.0,0.00025,2]
[422120770,1778583039000,-500.0,0.00024557,2]
[422120774,1778583039000,-500.0,0.00024575,2]
[422120745,1778583039000,-1000.0,0.00023456,2]
[422120747,1778583039000,-2000.0,0.00023516,2]
[422120742,1778583039000,-158.0,0.00023,2]
[422120746,1778583039000,-830.94570506,0.00023483,2]
[422120750,1778583039000,-2000.0,0.00023681,2]
[422120751,1778583039000,-292.0,0.00024,2]
[422120753,1778583039000,-383.0,0.00024,2]
[422120752,1778583039000,-733.0,0.00024,2]
[422120761,1778583039000,-297.31647382,0.00024064,2]
[422120763,1778583039000,-2647.5197191,0.00024277,2]
[422120762,1778583039000,-210.53,0.00024064,2]
[422120755,1778583039000,-191.0,0.00024,2]
[422120749,1778583039000,-2000.0,0.00023516,2]
[422120756,1778583039000,-158.0,0.00024,2]
[422120754,1778583039000,-164.0,0.00024,2]
[422120767,1778583039000,-500.0,0.00024557,2]
[422120766,1778583039000,-500.0,0.00024557,2]
[422120768,1778583039000,-500.0,0.00024557,2]
[422120764,1778583039000,-510.0,0.00024397,2]
[422120776,1778583039000,-500.0,0.00024575,2]
[422120757,1778583039000,-1000.0,0.00024004,2]
[422120760,1778583039000,-2000.0,0.00024064,2]
[422120758,1778583039000,-4857.52129124,0.00024036,2]
[422120759,1778583039000,-322.39716292,0.00024064,2]
[422120775,1778583039000,-500.0,0.00024575,2]
[422120765,1778583039000,-179.2,0.00024528,2]
[422120830,1778583040000,-4633.91,0.00026078,7]
[422120840,1778583040000,-235.86,0.00026114,2]
[422120829,1778583040000,-1568.94,0.00026077,7]
[422120831,1778583040000,-1550.99,0.0002608,7]
[422120833,1778583040000,-235.86,0.00026085,2]
[422120836,1778583040000,-1568.94,0.00026105,2]
[422120835,1778583040000,-235.91,0.00026085,2]
[422120837,1778583040000,-4633.91,0.00026106,2]
[422120838,1778583040000,-1550.99,0.00026107,2]
[422120845,1778583040000,-4638.72,0.00026135,2]
[422120841,1778583040000,-235.91,0.00026114,2]
[422120843,1778583040000,-4633.91,0.00026133,2]
[422120842,1778583040000,-1568.94,0.00026132,2]
[422120844,1778583040000,-1550.99,0.00026135,2]
[422120832,1778583040000,-4638.72,0.0002608,7]
[422120846,1778583040000,-235.86,0.00026143,7]
[422120847,1778583040000,-235.91,0.00026143,7]
[422120848,1778583040000,-1568.94,0.0002616,7]
[422120849,1778583040000,-4633.91,0.00026161,7]
[422120850,1778583040000,-1550.99,0.00026162,7]
[422120851,1778583040000,-4638.72,0.00026162,7]
[422120839,1778583040000,-4638.72,0.00026107,2]
[422120827,1778583040000,-235.86,0.00026056,7]
[422120818,1778583040000,-168.97,0.00026027,2]
[422120826,1778583040000,-4638.72,0.00026053,2]
[422120852,1778583040000,-154.12,0.00026165,7]
[422120803,1778583040000,-1000.0,0.00025123,2]
[422120804,1778583040000,-183.71205536,0.00025123,2]
[422120805,1778583040000,-669.79022337,0.00025123,2]
[422120806,1778583040000,-250.0,0.00025123,2]
[422120807,1778583040000,-210.53,0.00025158,2]
[422120809,1778583040000,-699.84663285,0.00025429,2]
[422120810,1778583040000,-823.0,0.00025456,2]
[422120811,1778583040000,-568.65,0.000255,7]
[422120808,1778583040000,-1685.82,0.00025228,30]
[422120828,1778583040000,-235.91,0.00026056,7]
[422120812,1778583040000,-168.97,0.00025571,30]
[422120815,1778583040000,-756.10278535,0.00025761,2]
[422120816,1778583040000,-150.41,0.00025898,2]
[422120823,1778583040000,-1568.94,0.0002605,2]
[422120817,1778583040000,-510.0,0.000259,3]
[422120821,1778583040000,-154.12,0.00026029,2]
[422120819,1778583040000,-235.86,0.00026028,2]
[422120820,1778583040000,-235.91,0.00026028,2]
[422120822,1778583040000,-12094.67166057,0.00026043,2]
[422120825,1778583040000,-1550.99,0.00026053,2]
[422120824,1778583040000,-4633.91,0.00026051,2]
[422120814,1778583040000,-350.0,0.00025671,2]
[422120813,1778583040000,-1500.0,0.00025671,2]
[422120856,1778583040000,-1568.94,0.00026188,7]
[422120862,1778583040000,-4857.52129124,0.00026203,2]
[422120883,1778583040000,-235.91,0.00026287,2]
[422120884,1778583040000,-1568.94,0.00026298,2]
[422120886,1778583040000,-1550.99,0.000263,2]
[422120875,1778583040000,-210.53,0.00026252,2]
[422120888,1778583040000,-154.12,0.00026302,30]
[422120887,1778583040000,-4638.72,0.000263,2]
[422120898,1778583040000,-235.91,0.00026344,7]
[422120897,1778583040000,-235.86,0.00026344,7]
[422120890,1778583040000,-235.86,0.00026316,7]
[422120889,1778583040000,-2000.0,0.00026312,2]
[422120899,1778583040000,-1568.94,0.00026354,7]
[422120891,1778583040000,-235.91,0.00026316,7]
[422120893,1778583040000,-4633.91,0.00026326,7]
[422120892,1778583040000,-1568.94,0.00026326,7]
[422120895,1778583040000,-4638.72,0.00026327,7]
[422120894,1778583040000,-1550.99,0.00026327,7]
[422120900,1778583040000,-4633.91,0.00026354,7]
[422120901,1778583040000,-1550.99,0.00026355,7]
[422120903,1778583040000,-152.0,0.00026362,7]
[422120902,1778583040000,-4638.72,0.00026355,7]
[422120853,1778583040000,-235.86,0.00026172,7]
[422120880,1778583040000,-1550.99,0.00026272,2]
[422120882,1778583040000,-235.86,0.00026287,2]
[422120896,1778583040000,-152.0,0.00026331,7]
[422120879,1778583040000,-4633.91,0.00026271,2]
[422120854,1778583040000,-235.91,0.00026172,7]
[422120881,1778583040000,-4638.72,0.00026272,2]
[422120857,1778583040000,-4633.91,0.00026188,7]
[422120859,1778583040000,-4638.72,0.0002619,7]
[422120860,1778583040000,-235.86,0.000262,2]
[422120858,1778583040000,-1550.99,0.0002619,7]
[422120861,1778583040000,-235.91,0.000262,2]
[422120863,1778583040000,-1568.94,0.00026215,2]
[422120870,1778583040000,-235.91,0.00026229,7]
[422120871,1778583040000,-1568.94,0.00026243,7]
[422120873,1778583040000,-1550.99,0.00026245,7]
[422120864,1778583040000,-4633.91,0.00026216,2]
[422120867,1778583040000,-312.76767965,0.00026219,2]
[422120868,1778583040000,-301.05929088,0.00026219,2]
[422120866,1778583040000,-4638.72,0.00026217,2]
[422120865,1778583040000,-1550.99,0.00026217,2]
[422120872,1778583040000,-4633.91,0.00026244,7]
[422120869,1778583040000,-235.86,0.00026229,7]
[422120874,1778583040000,-4638.72,0.00026245,7]
[422120877,1778583040000,-235.91,0.00026258,2]
[422120876,1778583040000,-235.86,0.00026258,2]
[422120878,1778583040000,-1568.94,0.00026271,2]
[422120885,1778583040000,-4633.91,0.00026299,2]
[422120942,1778583041000,-235.86,0.00026517,7]
[422120940,1778583041000,-1568.94,0.00026492,7]
[422120941,1778583041000,-4633.91,0.00026492,7]
[422120939,1778583041000,-4638.72,0.00026492,7]
[422120937,1778583041000,-235.91,0.00026488,7]
[422120938,1778583041000,-1550.99,0.00026492,7]
[422120943,1778583041000,-235.91,0.00026517,7]
[422120936,1778583041000,-235.86,0.00026488,7]
[422120944,1778583041000,-1550.99,0.0002652,7]
[422120947,1778583041000,-4633.91,0.0002652,7]
[422120935,1778583041000,-168.97,0.00026484,7]
[422120945,1778583041000,-4638.72,0.0002652,7]
[422120958,1778583041000,-4638.77,0.00026575,7]
[422120953,1778583041000,-4633.91,0.00026547,2]
[422120951,1778583041000,-4638.72,0.00026547,2]
[422120948,1778583041000,-235.86,0.00026546,2]
[422120950,1778583041000,-1550.99,0.00026547,2]
[422120949,1778583041000,-235.91,0.00026546,2]
[422120952,1778583041000,-1568.94,0.00026547,2]
[422120954,1778583041000,-1537.12,0.00026575,7]
[422120955,1778583041000,-157.73,0.00026575,7]
[422120956,1778583041000,-235.97,0.00026575,7]
[422120957,1778583041000,-1551.09,0.00026575,7]
[422120959,1778583041000,-154.16,0.00026575,7]
[422120934,1778583041000,-4638.72,0.00026465,2]
[422120946,1778583041000,-1568.94,0.0002652,7]
[422120929,1778583041000,-235.86,0.0002646,2]
[422120908,1778583041000,-1568.94,0.00026381,2]
[422120928,1778583041000,-154.12,0.00026438,2]
[422120960,1778583041000,-236.1,0.00026575,7]
[422120909,1778583041000,-1550.99,0.00026382,2]
[422120904,1778583041000,-152.0,0.00026362,7]
[422120907,1778583041000,-235.91,0.00026373,2]
[422120906,1778583041000,-235.86,0.00026373,2]
[422120905,1778583041000,-500.0,0.00026373,2]
[422120910,1778583041000,-4638.72,0.00026382,2]
[422120912,1778583041000,-235.86,0.00026402,7]
[422120921,1778583041000,-235.86,0.00026431,2]
[422120913,1778583041000,-235.91,0.00026402,7]
[422120922,1778583041000,-235.91,0.00026431,2]
[422120919,1778583041000,-1550.99,0.0002641,7]
[422120911,1778583041000,-4633.91,0.00026382,2]
[422120920,1778583041000,-4638.72,0.0002641,7]
[422120918,1778583041000,-152.0,0.0002641,7]
[422120917,1778583041000,-152.0,0.0002641,7]
[422120915,1778583041000,-4633.91,0.00026409,7]
[422120914,1778583041000,-1568.94,0.00026409,7]
[422120923,1778583041000,-1550.99,0.00026437,2]
[422120933,1778583041000,-1550.99,0.00026465,2]
[422120932,1778583041000,-4633.91,0.00026464,2]
[422120927,1778583041000,-4633.91,0.00026437,2]
[422120926,1778583041000,-1568.94,0.00026437,2]
[422120925,1778583041000,-4638.72,0.00026437,2]
[422120931,1778583041000,-1568.94,0.00026464,2]